[Event "*** Titled Tuesday Blitz"]
[Site "Chess.com"]
[Date "2019.10.01"]
[Round "2"]
[White "BlueWizzard"]
[Black "Vlad_Lukiianchuk"]
[Result "0-1"]
[WhiteElo "2826"]
[BlackElo "2562"]
[TimeControl "180+2"]
[EndTime "13:23:03 PDT"]
[Termination "Vlad_Lukiianchuk won by resignation"]

1. e4 {[%clk 0:03:01.9]} 1... d6 {[%clk 0:02:58.8]} 2. d4 {[%clk 0:03:03]} 2...
Nf6 {[%clk 0:02:59.6]} 3. f3 {[%clk 0:03:04.8]} 3... e5 {[%clk 0:02:55.3]} 4.
Ne2 {[%clk 0:03:06.3]} 4... Be7 {[%clk 0:02:53.5]} 5. Be3 {[%clk 0:03:06.9]}
5... c6 {[%clk 0:02:39.1]} 6. Qd2 {[%clk 0:03:06.3]} 6... Nbd7 {[%clk
0:02:24.7]} 7. c4 {[%clk 0:02:57.1]} 7... Qc7 {[%clk 0:02:22]} 8. Nbc3 {[%clk
0:02:51.7]} 8... h5 {[%clk 0:02:15.2]} 9. h4 {[%clk 0:02:41.2]} 9... a6 {[%clk
0:02:14.5]} 10. Rc1 {[%clk 0:02:38.2]} 10... Nf8 {[%clk 0:02:09.1]} 11. Ng3
{[%clk 0:02:34]} 11... g6 {[%clk 0:02:03.8]} 12. d5 {[%clk 0:02:30.6]} 12... Bd7
{[%clk 0:01:57.5]} 13. Be2 {[%clk 0:02:28.6]} 13... c5 {[%clk 0:01:50.6]} 14. a3
{[%clk 0:02:29.5]} 14... Qd8 {[%clk 0:01:29]} 15. Nf1 {[%clk 0:02:12.1]} 15...
N6h7 {[%clk 0:01:25.3]} 16. Bf2 {[%clk 0:02:07.8]} 16... g5 {[%clk 0:01:12.9]}
17. b4 {[%clk 0:02:01.5]} 17... b6 {[%clk 0:01:11.4]} 18. hxg5 {[%clk
0:01:54.9]} 18... Bxg5 {[%clk 0:01:11.5]} 19. Be3 {[%clk 0:01:56.2]} 19... Bxe3
{[%clk 0:01:06.7]} 20. Qxe3 {[%clk 0:01:57.3]} 20... h4 {[%clk 0:01:06.3]} 21.
g3 {[%clk 0:01:32.8]} 21... hxg3 {[%clk 0:00:56.8]} 22. Nxg3 {[%clk 0:01:31.8]}
22... Ng6 {[%clk 0:00:49]} 23. Qh6 {[%clk 0:01:18.3]} 23... Qf6 {[%clk
0:00:35.9]} 24. Nh5 {[%clk 0:01:14.8]} 24... Qg5 {[%clk 0:00:33.3]} 25. Ng7+
{[%clk 0:01:05.4]} 25... Ke7 {[%clk 0:00:29.7]} 26. Kf2 {[%clk 0:00:58.4]} 26...
Nf4 {[%clk 0:00:21.4]} 27. Qxg5+ {[%clk 0:00:36.7]} 27... Nxg5 {[%clk
0:00:23.3]} 28. Nf5+ {[%clk 0:00:35.5]} 28... Bxf5 {[%clk 0:00:22.6]} 29. exf5
{[%clk 0:00:37.4]} 29... Ngh3+ {[%clk 0:00:19.9]} 30. Ke3 {[%clk 0:00:37.9]}
30... Rag8 {[%clk 0:00:20.1]} 31. Rh2 {[%clk 0:00:36.9]} 31... Rg2 {[%clk
0:00:13.6]} 32. Rch1 {[%clk 0:00:37.1]} 32... Rxh2 {[%clk 0:00:13.2]} 33. Rxh2
{[%clk 0:00:39]} 33... Rg8 {[%clk 0:00:15]} 34. Na4 {[%clk 0:00:39.4]} 34... b5
{[%clk 0:00:14.5]} 35. cxb5 {[%clk 0:00:39.6]} 35... Nxd5+ {[%clk 0:00:15.9]}
36. Kd2 {[%clk 0:00:40.4]} 36... axb5 {[%clk 0:00:17]} 37. Bxb5 {[%clk
0:00:41.7]} 37... cxb4 {[%clk 0:00:18.5]} 38. Rxh3 {[%clk 0:00:42.3]} 38... bxa3
{[%clk 0:00:19.3]} 39. Bc4 {[%clk 0:00:43.4]} 39... Rg2+ {[%clk 0:00:18.6]} 40.
Be2 {[%clk 0:00:33.4]} 40... Rxe2+ {[%clk 0:00:11.9]} 41. Kxe2 {[%clk
0:00:33.6]} 41... Nf4+ {[%clk 0:00:13.8]} 42. Kd2 {[%clk 0:00:35.1]} 42... Nxh3
{[%clk 0:00:15.6]} 43. Nc3 {[%clk 0:00:35.1]} 43... Ng5 {[%clk 0:00:14.8]} 44.
f4 {[%clk 0:00:35.7]} 44... exf4 {[%clk 0:00:13]} 45. Kc2 {[%clk 0:00:36.5]}
45... Kf6 {[%clk 0:00:13.9]} 46. Kb3 {[%clk 0:00:37.3]} 46... Kxf5 {[%clk
0:00:14.6]} 47. Kxa3 {[%clk 0:00:39]} 47... f3 {[%clk 0:00:15.7]} 48. Kb2 {[%clk
0:00:39.1]} 48... f2 {[%clk 0:00:15.1]} 49. Nd1 {[%clk 0:00:41]} 49... Ne4
{[%clk 0:00:15.1]} 50. Kc2 {[%clk 0:00:41.7]} 50... Kf4 {[%clk 0:00:16.1]} 0-1

[Event "*** Titled Tuesday Blitz"]
[Site "Chess.com"]
[Date "2019.10.01"]
[Round "2"]
[White "Orange_Ghost"]
[Black "morphinho22"]
[Result "1-0"]
[WhiteElo "2763"]
[BlackElo "2359"]
[TimeControl "180+2"]
[EndTime "13:23:09 PDT"]
[Termination "Orange_Ghost won by resignation"]

1. d4 {[%clk 0:03:01.9]} 1... Nf6 {[%clk 0:03:00.8]} 2. c4 {[%clk 0:03:02.5]}
2... g6 {[%clk 0:03:02.1]} 3. Nc3 {[%clk 0:03:03.7]} 3... Bg7 {[%clk 0:03:03.6]}
4. e4 {[%clk 0:03:05]} 4... d6 {[%clk 0:03:05]} 5. Be2 {[%clk 0:03:06.4]} 5...
O-O {[%clk 0:03:06.3]} 6. Be3 {[%clk 0:03:07.8]} 6... c5 {[%clk 0:03:06.9]} 7.
d5 {[%clk 0:03:09]} 7... b5 {[%clk 0:03:02.2]} 8. cxb5 {[%clk 0:03:02.3]} 8...
a6 {[%clk 0:03:03.4]} 9. bxa6 {[%clk 0:02:48.3]} 9... Qa5 {[%clk 0:03:01.4]} 10.
Bd2 {[%clk 0:02:36.5]} 10... Bxa6 {[%clk 0:03:00.8]} 11. Nf3 {[%clk 0:02:31.6]}
11... Nbd7 {[%clk 0:02:59.5]} 12. O-O {[%clk 0:02:30.9]} 12... Rfb8 {[%clk
0:02:58.6]} 13. b3 {[%clk 0:02:28.9]} 13... Ng4 {[%clk 0:02:24.9]} 14. Na4
{[%clk 0:01:57.4]} 14... Qc7 {[%clk 0:02:03.5]} 15. Rc1 {[%clk 0:01:35.8]} 15...
Nge5 {[%clk 0:01:49.6]} 16. Nxe5 {[%clk 0:01:15.9]} 16... Nxe5 {[%clk
0:01:47.6]} 17. Bc3 {[%clk 0:01:11.6]} 17... Qa7 {[%clk 0:01:26.7]} 18. f4
{[%clk 0:01:03.7]} 18... Bxe2 {[%clk 0:00:42.8]} 19. Qxe2 {[%clk 0:01:05.6]}
19... c4+ {[%clk 0:00:43.3]} 20. Kh1 {[%clk 0:01:03.7]} 20... Nd3 {[%clk
0:00:30.1]} 21. Rb1 {[%clk 0:00:41.6]} 21... Bxc3 {[%clk 0:00:21.1]} 22. Nxc3
{[%clk 0:00:43.5]} 22... Qd4 {[%clk 0:00:22.2]} 23. Qd2 {[%clk 0:00:40.2]} 23...
cxb3 {[%clk 0:00:17.1]} 24. axb3 {[%clk 0:00:35.5]} 24... Rb4 {[%clk 0:00:10.7]}
25. Rbd1 {[%clk 0:00:31.1]} 25... Rc8 {[%clk 0:00:06.3]} 26. Qxd3 {[%clk
0:00:27.5]} 26... Qxd3 {[%clk 0:00:07.6]} 27. Rxd3 {[%clk 0:00:28.7]} 27... Rxb3
{[%clk 0:00:09.5]} 28. Rc1 {[%clk 0:00:29.8]} 28... Rc4 {[%clk 0:00:10.4]} 29.
Kg1 {[%clk 0:00:29.9]} 29... Rxe4 {[%clk 0:00:11.5]} 30. Nxe4 {[%clk 0:00:20.2]}
30... Rxd3 {[%clk 0:00:13.4]} 31. Rc7 {[%clk 0:00:19.8]} 31... Kg7 {[%clk
0:00:14.9]} 32. Rxe7 {[%clk 0:00:20.5]} 32... Rd1+ {[%clk 0:00:16.1]} 33. Kf2
{[%clk 0:00:21.6]} 33... Rxd5 {[%clk 0:00:18]} 34. Kf3 {[%clk 0:00:19.4]} 34...
Kf8 {[%clk 0:00:17.3]} 35. Rd7 {[%clk 0:00:19.5]} 35... Rd3+ {[%clk 0:00:17.3]}
36. Ke2 {[%clk 0:00:20.6]} 36... Rd4 {[%clk 0:00:17.2]} 37. Ke3 {[%clk
0:00:21.9]} 37... Rd1 {[%clk 0:00:15.4]} 38. Rxd6 {[%clk 0:00:22.3]} 38... Rh1
{[%clk 0:00:15.6]} 39. h3 {[%clk 0:00:22.6]} 39... Ke7 {[%clk 0:00:16.3]} 40.
Ra6 {[%clk 0:00:23.3]} 40... Rg1 {[%clk 0:00:15.8]} 41. Kf2 {[%clk 0:00:23.6]}
41... Rc1 {[%clk 0:00:16.3]} 42. Ng5 {[%clk 0:00:23.3]} 42... Rc2+ {[%clk
0:00:14.6]} 43. Kg3 {[%clk 0:00:23.9]} 43... Rc3+ {[%clk 0:00:15.8]} 44. Kh2
{[%clk 0:00:25.1]} 44... h6 {[%clk 0:00:14.7]} 45. Ra7+ {[%clk 0:00:26.2]} 45...
Kf8 {[%clk 0:00:16]} 46. Nxf7 {[%clk 0:00:25.8]} 46... h5 {[%clk 0:00:14.8]} 47.
Ne5 {[%clk 0:00:15.6]} 1-0

[Event "*** Titled Tuesday Blitz"]
[Site "Chess.com"]
[Date "2019.10.01"]
[Round "2"]
[White "Misha_Bilous"]
[Black "oskariot"]
[Result "1-0"]
[WhiteElo "2522"]
[BlackElo "2727"]
[TimeControl "180+2"]
[EndTime "13:23:14 PDT"]
[Termination "Misha_Bilous won by resignation"]

1. d4 {[%clk 0:03:01.6]} 1... Nf6 {[%clk 0:03:00.5]} 2. c4 {[%clk 0:03:03]} 2...
c5 {[%clk 0:03:01.7]} 3. d5 {[%clk 0:03:04.1]} 3... b5 {[%clk 0:03:03.3]} 4.
cxb5 {[%clk 0:03:05.6]} 4... a6 {[%clk 0:03:05]} 5. bxa6 {[%clk 0:03:07.2]} 5...
g6 {[%clk 0:03:06.7]} 6. Nc3 {[%clk 0:03:08.5]} 6... Bxa6 {[%clk 0:03:08.2]} 7.
e4 {[%clk 0:03:09.9]} 7... Bxf1 {[%clk 0:03:10.1]} 8. Kxf1 {[%clk 0:03:11.5]}
8... d6 {[%clk 0:03:12]} 9. Nf3 {[%clk 0:03:13]} 9... Bg7 {[%clk 0:03:13.6]} 10.
g3 {[%clk 0:03:14.4]} 10... O-O {[%clk 0:03:15.3]} 11. Kg2 {[%clk 0:03:15.8]}
11... Nbd7 {[%clk 0:03:17]} 12. a4 {[%clk 0:03:16]} 12... Qa5 {[%clk 0:03:18.5]}
13. Qe2 {[%clk 0:03:09.4]} 13... Qb4 {[%clk 0:03:18.9]} 14. Bd2 {[%clk
0:02:41.9]} 14... Rfb8 {[%clk 0:03:16.4]} 15. Rab1 {[%clk 0:02:29.9]} 15... Qb3
{[%clk 0:03:08.2]} 16. Bg5 {[%clk 0:02:03.5]} 16... Nb6 {[%clk 0:02:55.1]} 17.
e5 {[%clk 0:01:14.9]} 17... Nfxd5 {[%clk 0:02:34]} 18. Rhd1 {[%clk 0:00:54.8]}
18... Nxc3 {[%clk 0:02:12.5]} 19. bxc3 {[%clk 0:00:56.7]} 19... Qxc3 {[%clk
0:02:14.4]} 20. exd6 {[%clk 0:00:52.4]} 20... exd6 {[%clk 0:02:16.3]} 21. Rxd6
{[%clk 0:00:42.6]} 21... Re8 {[%clk 0:02:07.1]} 22. Qb5 {[%clk 0:00:21]} 22...
Nc4 {[%clk 0:01:24.4]} 23. Rd7 {[%clk 0:00:14.3]} 23... Na3 {[%clk 0:01:25.4]}
24. Qb3 {[%clk 0:00:15.8]} 24... Qxb3 {[%clk 0:01:12.6]} 25. Rxb3 {[%clk
0:00:17.7]} 25... Rxa4 {[%clk 0:01:13.9]} 26. Rbb7 {[%clk 0:00:19.1]} 26... Rb4
{[%clk 0:00:48.5]} 27. Rxf7 {[%clk 0:00:06.1]} 27... Rxb7 {[%clk 0:00:49]} 28.
Rxb7 {[%clk 0:00:08]} 28... Rc8 {[%clk 0:00:42.1]} 29. Bc1 {[%clk 0:00:04.5]}
29... Nc4 {[%clk 0:00:39.8]} 30. Nd2 {[%clk 0:00:03.3]} 30... Nd6 {[%clk
0:00:35.8]} 31. Rd7 {[%clk 0:00:03.9]} 31... Nb5 {[%clk 0:00:36]} 32. Nc4 {[%clk
0:00:04.7]} 32... Nc3 {[%clk 0:00:35.4]} 33. Be3 {[%clk 0:00:05.3]} 33... Na4
{[%clk 0:00:31.1]} 34. Rd5 {[%clk 0:00:05.5]} 34... Bf8 {[%clk 0:00:28.7]} 35.
Rd7 {[%clk 0:00:06.2]} 35... Rc6 {[%clk 0:00:25]} 36. Ra7 {[%clk 0:00:06.8]}
36... Nc3 {[%clk 0:00:21.6]} 37. Ra8 {[%clk 0:00:07.5]} 37... Kg7 {[%clk
0:00:20]} 38. Ne5 {[%clk 0:00:05.5]} 38... Rc7 {[%clk 0:00:18.7]} 39. Bc1 {[%clk
0:00:04.8]} 39... Nd1 {[%clk 0:00:08.8]} 40. Rd8 {[%clk 0:00:04.5]} 40... Re7
{[%clk 0:00:07.1]} 41. Rxd1 {[%clk 0:00:02.6]} 41... Rxe5 {[%clk 0:00:05.6]} 42.
Bb2 {[%clk 0:00:04.2]} 42... Kf6 {[%clk 0:00:06.5]} 43. f4 {[%clk 0:00:04.9]}
1-0

[Event "*** Titled Tuesday Blitz"]
[Site "Chess.com"]
[Date "2019.10.01"]
[Round "2"]
[White "SloLev"]
[Black "Sajkochess"]
[Result "0-1"]
[WhiteElo "2485"]
[BlackElo "2263"]
[TimeControl "180+2"]
[EndTime "13:23:20 PDT"]
[Termination "Sajkochess won by resignation"]

1. d4 {[%clk 0:03:01.9]} 1... Nf6 {[%clk 0:02:59.4]} 2. Bf4 {[%clk 0:03:01]}
2... e6 {[%clk 0:03:00.3]} 3. e3 {[%clk 0:02:57.6]} 3... c5 {[%clk 0:03:00.8]}
4. c3 {[%clk 0:02:57.4]} 4... b6 {[%clk 0:03:00.9]} 5. Nf3 {[%clk 0:02:55.9]}
5... Bb7 {[%clk 0:03:01.6]} 6. Nbd2 {[%clk 0:02:55.7]} 6... Be7 {[%clk
0:03:02.6]} 7. Bd3 {[%clk 0:02:56.9]} 7... O-O {[%clk 0:03:03.2]} 8. O-O {[%clk
0:02:54.2]} 8... d6 {[%clk 0:02:54.2]} 9. e4 {[%clk 0:02:47.3]} 9... Nbd7 {[%clk
0:02:48.2]} 10. Qe2 {[%clk 0:02:41.3]} 10... Qc7 {[%clk 0:02:37.1]} 11. e5
{[%clk 0:02:30.7]} 11... dxe5 {[%clk 0:02:30.5]} 12. Nxe5 {[%clk 0:02:25.8]}
12... Nxe5 {[%clk 0:01:58.9]} 13. dxe5 {[%clk 0:02:23]} 13... Qc6 {[%clk
0:01:16]} 14. f3 {[%clk 0:02:03.7]} 14... Nd5 {[%clk 0:01:04.5]} 15. Bg3 {[%clk
0:01:55.1]} 15... Bg5 {[%clk 0:00:55.4]} 16. f4 {[%clk 0:01:53.7]} 16... Be7
{[%clk 0:00:40.7]} 17. Ne4 {[%clk 0:01:40.4]} 17... Rac8 {[%clk 0:00:26.1]} 18.
Kh1 {[%clk 0:01:27.2]} 18... c4 {[%clk 0:00:24]} 19. Bc2 {[%clk 0:01:27.8]}
19... g6 {[%clk 0:00:18.9]} 20. Rad1 {[%clk 0:00:56.9]} 20... Rfd8 {[%clk
0:00:19.7]} 21. Rd4 {[%clk 0:00:56.1]} 21... Bc5 {[%clk 0:00:17.1]} 22. Bh4
{[%clk 0:00:56.8]} 22... Bxd4 {[%clk 0:00:11.2]} 23. Bxd8 {[%clk 0:00:55.7]}
23... Rxd8 {[%clk 0:00:12.1]} 24. cxd4 {[%clk 0:00:56.1]} 24... c3 {[%clk
0:00:13.1]} 25. b3 {[%clk 0:00:33.7]} 25... Nb4 {[%clk 0:00:13.7]} 26. Nf6+
{[%clk 0:00:34.5]} 26... Kg7 {[%clk 0:00:14.4]} 27. Be4 {[%clk 0:00:36.1]} 27...
Qc7 {[%clk 0:00:13.1]} 28. Bxb7 {[%clk 0:00:28.2]} 28... Qxb7 {[%clk 0:00:15]}
29. Qg4 {[%clk 0:00:29.8]} 29... Qa6 {[%clk 0:00:11.3]} 30. Rg1 {[%clk
0:00:21.4]} 30... Nd3 {[%clk 0:00:09.5]} 31. Qh4 {[%clk 0:00:21.4]} 31... h5
{[%clk 0:00:10]} 32. h3 {[%clk 0:00:21.5]} 32... Rh8 {[%clk 0:00:06.9]} 33. Qg5
{[%clk 0:00:21.3]} 33... c2 {[%clk 0:00:05.7]} 34. f5 {[%clk 0:00:21.9]} 34...
exf5 {[%clk 0:00:05.8]} 35. e6 {[%clk 0:00:22.5]} 35... b5 {[%clk 0:00:06.5]}
36. d5 {[%clk 0:00:16.2]} 36... fxe6 {[%clk 0:00:06.7]} 37. Nd7 {[%clk
0:00:16.1]} 37... exd5 {[%clk 0:00:06.3]} 38. Qe7+ {[%clk 0:00:17.3]} 38... Kh6
{[%clk 0:00:06.8]} 39. Qe3+ {[%clk 0:00:17.2]} 39... f4 {[%clk 0:00:04.6]} 40.
Qxd3 {[%clk 0:00:18.3]} 40... Qd6 {[%clk 0:00:05.2]} 41. Qxb5 {[%clk 0:00:15.8]}
41... Rc8 {[%clk 0:00:04.3]} 42. Nc5 {[%clk 0:00:04.4]} 42... Rxc5 {[%clk
0:00:04.8]} 43. Qe2 {[%clk 0:00:02.9]} 43... c1=Q {[%clk 0:00:05.5]} 44. Rxc1
{[%clk 0:00:04.5]} 44... Rxc1+ {[%clk 0:00:06.6]} 45. Kh2 {[%clk 0:00:06.4]}
45... f3+ {[%clk 0:00:08.2]} 0-1

[Event "*** Titled Tuesday Blitz"]
[Site "Chess.com"]
[Date "2019.10.01"]
[Round "2"]
[White "KhalilMousavi77"]
[Black "Sashadav97"]
[Result "1-0"]
[WhiteElo "2817"]
[BlackElo "2529"]
[TimeControl "180+2"]
[EndTime "13:23:22 PDT"]
[Termination "KhalilMousavi77 won by resignation"]

1. d4 {[%clk 0:03:01.5]} 1... Nf6 {[%clk 0:03:00.9]} 2. Nf3 {[%clk 0:02:58.9]}
2... e6 {[%clk 0:03:02.2]} 3. e3 {[%clk 0:02:54.9]} 3... d5 {[%clk 0:02:53.6]}
4. c4 {[%clk 0:02:55.7]} 4... Be7 {[%clk 0:02:50.8]} 5. Nc3 {[%clk 0:02:54.9]}
5... O-O {[%clk 0:02:51.7]} 6. b3 {[%clk 0:02:51.8]} 6... b6 {[%clk 0:02:52.6]}
7. Bb2 {[%clk 0:02:52.9]} 7... Bb7 {[%clk 0:02:52.9]} 8. cxd5 {[%clk 0:02:52.6]}
8... exd5 {[%clk 0:02:52.1]} 9. Bd3 {[%clk 0:02:53.4]} 9... Nbd7 {[%clk
0:02:51.6]} 10. O-O {[%clk 0:02:55]} 10... a6 {[%clk 0:02:48.7]} 11. Ne2 {[%clk
0:02:55.5]} 11... Bd6 {[%clk 0:02:45.9]} 12. Ne5 {[%clk 0:02:49.2]} 12... Qe7
{[%clk 0:02:36.1]} 13. f4 {[%clk 0:02:50]} 13... Ne4 {[%clk 0:02:34.4]} 14. Rc1
{[%clk 0:02:45.3]} 14... Ndf6 {[%clk 0:02:30.2]} 15. Qe1 {[%clk 0:02:33.6]}
15... Rae8 {[%clk 0:02:11.8]} 16. Qh4 {[%clk 0:02:30.4]} 16... h6 {[%clk
0:02:11.6]} 17. Qh3 {[%clk 0:02:07.6]} 17... c5 {[%clk 0:02:04.4]} 18. dxc5
{[%clk 0:02:08.2]} 18... bxc5 {[%clk 0:02:04.3]} 19. Rfd1 {[%clk 0:02:06.1]}
19... Bxe5 {[%clk 0:01:35.1]} 20. fxe5 {[%clk 0:02:03.5]} 20... Nh7 {[%clk
0:01:32.3]} 21. Nf4 {[%clk 0:01:48.7]} 21... Nhg5 {[%clk 0:01:26.7]} 22. Qh5
{[%clk 0:01:42.9]} 22... f6 {[%clk 0:00:58]} 23. Bxe4 {[%clk 0:01:26.6]} 23...
Nxe4 {[%clk 0:00:34.6]} 24. Ng6 {[%clk 0:01:20.4]} 24... Qf7 {[%clk 0:00:33.5]}
25. exf6 {[%clk 0:01:18.8]} 25... Re6 {[%clk 0:00:18.5]} 26. Rf1 {[%clk
0:01:13.6]} 26... Rfe8 {[%clk 0:00:15.3]} 27. Nf4 {[%clk 0:00:45.9]} 27... Qxh5
{[%clk 0:00:15.5]} 28. Nxh5 {[%clk 0:00:47.8]} 28... gxf6 {[%clk 0:00:17.1]} 29.
Rf4 {[%clk 0:00:46.2]} 29... Kh7 {[%clk 0:00:14.4]} 30. Rcf1 {[%clk 0:00:44.6]}
30... Rg8 {[%clk 0:00:14.7]} 31. Bxf6 {[%clk 0:00:36.6]} 31... d4 {[%clk
0:00:15.6]} 32. Bg7 {[%clk 0:00:29.4]} 32... Rxg7 {[%clk 0:00:15]} 33. Nxg7
{[%clk 0:00:30.7]} 33... Kxg7 {[%clk 0:00:16.6]} 34. Rf7+ {[%clk 0:00:31.9]}
34... Kg6 {[%clk 0:00:17.7]} 35. Rxb7 {[%clk 0:00:33.1]} 35... dxe3 {[%clk
0:00:19.3]} 36. Re1 {[%clk 0:00:33.4]} 36... Nc3 {[%clk 0:00:17.5]} 37. Rd7
{[%clk 0:00:31.3]} 37... Nxa2 {[%clk 0:00:17.1]} 38. Rd3 {[%clk 0:00:30.4]}
38... e2 {[%clk 0:00:18.4]} 39. Kf2 {[%clk 0:00:28.5]} 39... Nb4 {[%clk
0:00:19.6]} 40. Rg3+ {[%clk 0:00:28.2]} 40... Kf6 {[%clk 0:00:15.5]} 41. Rxe2
{[%clk 0:00:28.8]} 41... Rxe2+ {[%clk 0:00:15]} 42. Kxe2 {[%clk 0:00:30.7]}
42... Nc6 {[%clk 0:00:16.9]} 43. Kd3 {[%clk 0:00:29.8]} 43... Na5 {[%clk
0:00:17.5]} 44. Kc3 {[%clk 0:00:30.4]} 44... Kf5 {[%clk 0:00:15.9]} 45. Rh3
{[%clk 0:00:31.2]} 45... Kg5 {[%clk 0:00:16.5]} 46. Rd3 {[%clk 0:00:32.7]} 46...
Kf4 {[%clk 0:00:12.7]} 47. Rd5 {[%clk 0:00:33.2]} 47... Nb7 {[%clk 0:00:14.1]}
48. Rd7 {[%clk 0:00:30.2]} 48... Na5 {[%clk 0:00:15]} 49. Rc7 {[%clk 0:00:30.1]}
49... Ke3 {[%clk 0:00:14.8]} 50. b4 {[%clk 0:00:30.9]} 50... Nb7 {[%clk
0:00:16.7]} 51. Rxb7 {[%clk 0:00:32.1]} 1-0

[Event "*** Titled Tuesday Blitz"]
[Site "Chess.com"]
[Date "2019.10.01"]
[Round "2"]
[White "aranibos"]
[Black "LornerAcosta"]
[Result "0-1"]
[WhiteElo "2174"]
[BlackElo "2466"]
[TimeControl "180+2"]
[EndTime "13:23:29 PDT"]
[Termination "LornerAcosta won by checkmate"]

1. d4 {[%clk 0:03:01.9]} 1... d5 {[%clk 0:02:59.4]} 2. Nf3 {[%clk 0:02:59.8]}
2... Nf6 {[%clk 0:02:59.7]} 3. Bf4 {[%clk 0:02:57.9]} 3... c5 {[%clk 0:02:57.2]}
4. Bxb8 {[%clk 0:02:54.5]} 4... Rxb8 {[%clk 0:02:57.4]} 5. dxc5 {[%clk
0:02:54.8]} 5... Qa5+ {[%clk 0:02:53.2]} 6. c3 {[%clk 0:02:54.6]} 6... Qxc5
{[%clk 0:02:53.8]} 7. e3 {[%clk 0:02:55.6]} 7... e6 {[%clk 0:02:38.2]} 8. Nbd2
{[%clk 0:02:56.1]} 8... Be7 {[%clk 0:02:37.3]} 9. Bd3 {[%clk 0:02:54.8]} 9...
O-O {[%clk 0:02:37.7]} 10. O-O {[%clk 0:02:50.4]} 10... Rd8 {[%clk 0:02:38.1]}
11. Qe2 {[%clk 0:02:50.1]} 11... b5 {[%clk 0:02:37.9]} 12. a3 {[%clk 0:02:49.5]}
12... a6 {[%clk 0:02:37.1]} 13. e4 {[%clk 0:02:47.4]} 13... Nh5 {[%clk
0:01:56.4]} 14. g3 {[%clk 0:02:40.7]} 14... dxe4 {[%clk 0:01:52.1]} 15. Nxe4
{[%clk 0:02:40.8]} 15... Qc7 {[%clk 0:01:51.2]} 16. Nfg5 {[%clk 0:02:23]} 16...
g6 {[%clk 0:01:43.5]} 17. Rad1 {[%clk 0:01:59.6]} 17... Bb7 {[%clk 0:01:36.9]}
18. f4 {[%clk 0:01:57.3]} 18... Qb6+ {[%clk 0:01:27.7]} 19. Qf2 {[%clk
0:01:42.6]} 19... Qc7 {[%clk 0:01:23.1]} 20. Bc2 {[%clk 0:01:30]} 20... Bxe4
{[%clk 0:00:52]} 21. Nxe4 {[%clk 0:01:22.5]} 21... f5 {[%clk 0:00:51.6]} 22. Ng5
{[%clk 0:00:53]} 22... Bc5 {[%clk 0:00:23.3]} 23. Rd4 {[%clk 0:00:54.1]} 23...
Bxd4 {[%clk 0:00:24.3]} 24. cxd4 {[%clk 0:00:53.9]} 24... Rd6 {[%clk 0:00:24.6]}
25. Bb3 {[%clk 0:00:54]} 25... Ng7 {[%clk 0:00:23.5]} 26. Re1 {[%clk 0:00:54.4]}
26... h6 {[%clk 0:00:14.2]} 27. Nxe6 {[%clk 0:00:51]} 27... Nxe6 {[%clk
0:00:14.7]} 28. Bxe6+ {[%clk 0:00:50]} 28... Kh7 {[%clk 0:00:14.1]} 29. d5
{[%clk 0:00:51.3]} 29... Rbd8 {[%clk 0:00:12.8]} 30. Qd4 {[%clk 0:00:49]} 30...
Qg7 {[%clk 0:00:13.7]} 31. Qe5 {[%clk 0:00:46.6]} 31... Kh8 {[%clk 0:00:12.2]}
32. Rc1 {[%clk 0:00:46.7]} 32... Kh7 {[%clk 0:00:06.1]} 33. Kf2 {[%clk
0:00:40.4]} 33... Rxd5 {[%clk 0:00:05.4]} 34. Bxd5 {[%clk 0:00:37]} 34... Qxe5
{[%clk 0:00:05.7]} 35. fxe5 {[%clk 0:00:37.1]} 35... Rxd5 {[%clk 0:00:07.6]} 36.
Re1 {[%clk 0:00:35.8]} 36... Kg7 {[%clk 0:00:08.1]} 37. h4 {[%clk 0:00:31.5]}
37... Kf7 {[%clk 0:00:08.8]} 38. Kf3 {[%clk 0:00:29.2]} 38... Ke6 {[%clk
0:00:09.3]} 39. Kf4 {[%clk 0:00:29.9]} 39... Rd4+ {[%clk 0:00:10.2]} 40. Kf3
{[%clk 0:00:30.9]} 40... g5 {[%clk 0:00:11.3]} 41. hxg5 {[%clk 0:00:31.4]} 41...
hxg5 {[%clk 0:00:12.8]} 42. Rc1 {[%clk 0:00:28.4]} 42... Kxe5 {[%clk 0:00:13.4]}
43. Rc6 {[%clk 0:00:28.1]} 43... Rd6 {[%clk 0:00:14.3]} 44. Rc5+ {[%clk
0:00:28.1]} 44... Rd5 {[%clk 0:00:14.5]} 45. Rc6 {[%clk 0:00:28.9]} 45... a5
{[%clk 0:00:16.1]} 46. Rg6 {[%clk 0:00:28.4]} 46... g4+ {[%clk 0:00:16.6]} 47.
Ke3 {[%clk 0:00:29.4]} 47... Rd1 {[%clk 0:00:14.9]} 48. Rb6 {[%clk 0:00:29.1]}
48... Rd5 {[%clk 0:00:16.1]} 49. Ke2 {[%clk 0:00:26.7]} 49... Ke4 {[%clk
0:00:16]} 50. Re6+ {[%clk 0:00:26.7]} 50... Re5 {[%clk 0:00:17.2]} 51. Rd6
{[%clk 0:00:25.8]} 51... f4 {[%clk 0:00:18.2]} 52. gxf4 {[%clk 0:00:25.9]} 52...
Kxf4+ {[%clk 0:00:19.8]} 53. Kf2 {[%clk 0:00:27.1]} 53... g3+ {[%clk 0:00:20.9]}
54. Kg1 {[%clk 0:00:26.8]} 54... Kf3 {[%clk 0:00:21.1]} 55. Rd3+ {[%clk
0:00:27.5]} 55... Re3 {[%clk 0:00:21.8]} 56. Rd2 {[%clk 0:00:27.5]} 56... Re1#
{[%clk 0:00:20.9]} 0-1